[Event "Early-Titled-Tuesday-Blitz-October-10-2023"]
[Site "Chess.com"]
[Date "2023.10.10"]
[Round "5"]
[White "alexrustemov"]
[Black "wqws"]
[Result "1/2-1/2"]
[WhiteElo "2859"]
[BlackElo "2667"]
[TimeControl "180+1"]
[EndTime "8:57:05 PDT"]
[Termination "Game drawn by repetition"]

1. d4 {[%clk 0:03:00.9]} 1... Nf6 {[%clk 0:02:58.6]} 2. c4 {[%clk 0:03:01.1]}
2... g6 {[%clk 0:02:55.3]} 3. Nf3 {[%clk 0:03:01.4]} 3... Bg7 {[%clk 0:02:55.6]}
4. g3 {[%clk 0:03:01.8]} 4... O-O {[%clk 0:02:56.1]} 5. Bg2 {[%clk 0:03:02.3]}
5... d6 {[%clk 0:02:54.7]} 6. Nc3 {[%clk 0:03:02.6]} 6... Nc6 {[%clk 0:02:55]}
7. O-O {[%clk 0:03:02.8]} 7... a6 {[%clk 0:02:55.2]} 8. h3 {[%clk 0:03:02.3]}
8... Rb8 {[%clk 0:02:55.5]} 9. e4 {[%clk 0:03:01.2]} 9... e5 {[%clk 0:02:48]}
10. Be3 {[%clk 0:02:59.4]} 10... exd4 {[%clk 0:02:43.7]} 11. Nxd4 {[%clk
0:02:58.7]} 11... Bd7 {[%clk 0:02:44.3]} 12. Rc1 {[%clk 0:02:56.8]} 12... Re8
{[%clk 0:02:44.1]} 13. b3 {[%clk 0:02:53.1]} 13... Qc8 {[%clk 0:02:41.1]} 14.
Kh2 {[%clk 0:02:50.1]} 14... h5 {[%clk 0:02:41.6]} 15. f3 {[%clk 0:02:47.5]}
15... Ne5 {[%clk 0:02:18.1]} 16. Qd2 {[%clk 0:02:43.3]} 16... h4 {[%clk
0:02:03.1]} 17. g4 {[%clk 0:02:42.8]} 17... Nc6 {[%clk 0:02:00.6]} 18. Nxc6
{[%clk 0:02:35.1]} 18... Bxc6 {[%clk 0:02:00.2]} 19. Bg5 {[%clk 0:02:35.6]}
19... Qd8 {[%clk 0:01:50.4]} 20. f4 {[%clk 0:02:28.7]} 20... Qd7 {[%clk
0:01:46.8]} 21. Rce1 {[%clk 0:02:21.3]} 21... Nxg4+ {[%clk 0:01:32.5]} 22. hxg4
{[%clk 0:02:20.7]} 22... Qxg4 {[%clk 0:01:32]} 23. Re3 {[%clk 0:01:31.7]} 23...
f6 {[%clk 0:01:26.8]} 24. Bh3 {[%clk 0:01:09.8]} 24... Qh5 {[%clk 0:01:26.6]}
25. Rg1 {[%clk 0:01:05.7]} 25... fxg5 {[%clk 0:01:26.7]} 26. Rxg5 {[%clk
0:01:06.2]} 26... Qh6 {[%clk 0:01:18.8]} 27. Nd5 {[%clk 0:01:00.5]} 27... Bxd5
{[%clk 0:00:56.5]} 28. Qxd5+ {[%clk 0:00:59.5]} 28... Kh7 {[%clk 0:00:52.6]} 29.
Re2 {[%clk 0:00:42.8]} 29... Re5 {[%clk 0:00:43.8]} 30. Qd2 {[%clk 0:00:14.5]}
30... Rxg5 {[%clk 0:00:41.1]} 31. fxg5 {[%clk 0:00:14.8]} 31... Be5+ {[%clk
0:00:41.1]} 32. Kg2 {[%clk 0:00:13.2]} 32... Qg7 {[%clk 0:00:40.1]} 33. Rf2
{[%clk 0:00:12.5]} 33... Rf8 {[%clk 0:00:39.9]} 34. Rxf8 {[%clk 0:00:11.2]}
34... Qxf8 {[%clk 0:00:40.1]} 35. Qf2 {[%clk 0:00:11.8]} 35... Qxf2+ {[%clk
0:00:33.5]} 36. Kxf2 {[%clk 0:00:12.3]} 36... Bf4 {[%clk 0:00:33.8]} 37. Bc8
{[%clk 0:00:12.4]} 37... Bxg5 {[%clk 0:00:34.2]} 38. Bxb7 {[%clk 0:00:12.1]}
38... a5 {[%clk 0:00:34.3]} 39. Kf3 {[%clk 0:00:11.3]} 39... Kg7 {[%clk
0:00:31.6]} 40. Kg4 {[%clk 0:00:11.2]} 40... Be7 {[%clk 0:00:31.6]} 41. a3
{[%clk 0:00:09.6]} 41... g5 {[%clk 0:00:31.2]} 42. b4 {[%clk 0:00:09.6]} 42...
axb4 {[%clk 0:00:30]} 43. axb4 {[%clk 0:00:10.5]} 43... Kf6 {[%clk 0:00:30.3]}
44. b5 {[%clk 0:00:10.5]} 44... Ke5 {[%clk 0:00:29.4]} 45. Bd5 {[%clk
0:00:10.9]} 45... Kd4 {[%clk 0:00:28]} 46. Kh3 {[%clk 0:00:09.5]} 46... Ke3
{[%clk 0:00:27.9]} 47. Be6 {[%clk 0:00:09.7]} 47... Kxe4 {[%clk 0:00:28]} 48.
Kg4 {[%clk 0:00:09.8]} 48... Ke5 {[%clk 0:00:24]} 49. Bd7 {[%clk 0:00:09.5]}
49... Bd8 {[%clk 0:00:23]} 50. Kh3 {[%clk 0:00:09.5]} 50... Kf4 {[%clk
0:00:20.8]} 51. Be6 {[%clk 0:00:09.8]} 51... Bf6 {[%clk 0:00:20.9]} 52. Bd7
{[%clk 0:00:10]} 52... Ke4 {[%clk 0:00:20.4]} 53. Be6 {[%clk 0:00:10.2]} 53...
Kd4 {[%clk 0:00:20.9]} 54. Kg4 {[%clk 0:00:09.7]} 54... Kc5 {[%clk 0:00:21.4]}
55. Kh3 {[%clk 0:00:09.4]} 55... Be5 {[%clk 0:00:21.6]} 56. Kg4 {[%clk
0:00:09.7]} 56... Bf4 {[%clk 0:00:22.1]} 57. Kh3 {[%clk 0:00:10]} 57... Kd4
{[%clk 0:00:22.5]} 58. Kg4 {[%clk 0:00:10.1]} 58... Ke3 {[%clk 0:00:22.8]} 59.
Bd7 {[%clk 0:00:09.8]} 59... Kf2 {[%clk 0:00:23.1]} 60. Kh3 {[%clk 0:00:10]}
60... Be3 {[%clk 0:00:23.4]} 61. Bg4 {[%clk 0:00:10.1]} 61... Bd2 {[%clk
0:00:23]} 62. Bd7 {[%clk 0:00:10.6]} 62... Bc3 {[%clk 0:00:23.3]} 63. Be6 {[%clk
0:00:10.8]} 63... Bb4 {[%clk 0:00:23.6]} 64. Bd7 {[%clk 0:00:11.1]} 64... Ba5
{[%clk 0:00:24]} 65. Be6 {[%clk 0:00:11.3]} 65... Ke3 {[%clk 0:00:24.3]} 66. Bd7
{[%clk 0:00:11.4]} 66... Ke4 {[%clk 0:00:24.5]} 67. Be6 {[%clk 0:00:11.5]} 67...
Kd4 {[%clk 0:00:24.9]} 68. Kg4 {[%clk 0:00:11.3]} 68... Bd2 {[%clk 0:00:23.6]}
69. Kh3 {[%clk 0:00:11.3]} 69... Be3 {[%clk 0:00:23.3]} 70. Kg4 {[%clk
0:00:11.4]} 70... Bc1 {[%clk 0:00:22.4]} 71. Kh3 {[%clk 0:00:11.6]} 71... Ke5
{[%clk 0:00:23.2]} 72. Bd7 {[%clk 0:00:11.5]} 72... Kf6 {[%clk 0:00:23.2]} 73.
Kg4 {[%clk 0:00:11.4]} 73... Bf4 {[%clk 0:00:24.1]} 74. Bc8 {[%clk 0:00:11.5]}
74... Ke7 {[%clk 0:00:23.7]} 75. Bf5 {[%clk 0:00:11.4]} 75... Kd8 {[%clk
0:00:23.9]} 76. Be6 {[%clk 0:00:11.4]} 76... Ke7 {[%clk 0:00:23.9]} 77. Bf5
{[%clk 0:00:11.7]} 77... Kf7 {[%clk 0:00:24.4]} 78. Bc8 {[%clk 0:00:11.8]} 78...
Kf6 {[%clk 0:00:24.8]} 79. Kh3 {[%clk 0:00:12.2]} 79... Ke5 {[%clk 0:00:25.3]}
80. Kg4 {[%clk 0:00:12.5]} 80... Kd4 {[%clk 0:00:25.5]} 81. Be6 {[%clk
0:00:12.9]} 81... Kc5 {[%clk 0:00:25.6]} 82. Kh3 {[%clk 0:00:12.9]} 82... c6
{[%clk 0:00:25.4]} 83. bxc6 {[%clk 0:00:12.1]} 83... Kxc6 {[%clk 0:00:25.9]} 84.
Kg4 {[%clk 0:00:12.4]} 84... Kc5 {[%clk 0:00:26.4]} 85. Kh3 {[%clk 0:00:12.3]}
85... Kd4 {[%clk 0:00:27]} 86. Kg4 {[%clk 0:00:11.7]} 86... Ke3 {[%clk 0:00:27]}
87. Kh3 {[%clk 0:00:11.4]} 87... Kf2 {[%clk 0:00:27.3]} 88. Bd7 {[%clk
0:00:11.6]} 88... Kf3 {[%clk 0:00:27.3]} 89. Be6 {[%clk 0:00:11.7]} 89... Bg3
{[%clk 0:00:27.8]} 90. Bd7 {[%clk 0:00:11.5]} 90... Kf4 {[%clk 0:00:28.3]} 91.
Be6 {[%clk 0:00:11.6]} 91... Ke5 {[%clk 0:00:28.8]} 92. Bd7 {[%clk 0:00:11.7]}
92... Kf6 {[%clk 0:00:29.5]} 93. Kg4 {[%clk 0:00:11.8]} 93... Ke7 {[%clk
0:00:28.9]} 94. Bc8 {[%clk 0:00:11.9]} 94... Kd8 {[%clk 0:00:26.9]} 95. Bf5
{[%clk 0:00:11.9]} 95... Bf4 {[%clk 0:00:27.3]} 96. Be6 {[%clk 0:00:11.8]} 96...
Kc7 {[%clk 0:00:27.9]} 97. Bf5 {[%clk 0:00:11.8]} 97... Kb6 {[%clk 0:00:28.6]}
98. Be6 {[%clk 0:00:12.2]} 98... Kc5 {[%clk 0:00:29.1]} 99. Kh3 {[%clk
0:00:12.8]} 99... Kd4 {[%clk 0:00:28.9]} 100. Kg4 {[%clk 0:00:13.1]} 100... Ke4
{[%clk 0:00:29.4]} 101. Kh3 {[%clk 0:00:12.8]} 101... Kf3 {[%clk 0:00:29.6]}
102. Bd7 {[%clk 0:00:12.3]} 102... Be5 {[%clk 0:00:29.8]} 103. Be6 {[%clk
0:00:12.5]} 103... Bf6 {[%clk 0:00:30.3]} 104. Bd7 {[%clk 0:00:12.6]} 104... Kf4
{[%clk 0:00:30.8]} 105. Be6 {[%clk 0:00:12.2]} 105... Be7 {[%clk 0:00:31]} 106.
Bd7 {[%clk 0:00:12.2]} 106... Ke5 {[%clk 0:00:31.7]} 107. Kg4 {[%clk 0:00:12.1]}
107... Kd4 {[%clk 0:00:31]} 108. Be6 {[%clk 0:00:11.7]} 108... Kc5 {[%clk
0:00:31.5]} 109. Kh3 {[%clk 0:00:11.5]} 109... Kb4 {[%clk 0:00:32.1]} 110. Kg4
{[%clk 0:00:11.7]} 110... Kc3 {[%clk 0:00:33]} 111. Kh3 {[%clk 0:00:12.3]}
111... Kd4 {[%clk 0:00:33.5]} 112. Kg4 {[%clk 0:00:12.8]} 112... Ke3 {[%clk
0:00:34.1]} 113. Kh3 {[%clk 0:00:12.8]} 113... Kf2 {[%clk 0:00:34.6]} 114. Bd7
{[%clk 0:00:13.2]} 114... Kg1 {[%clk 0:00:35.1]} 115. Be6 {[%clk 0:00:13.6]}
115... Kh1 {[%clk 0:00:35.6]} 116. Bd7 {[%clk 0:00:14.1]} 116... Kg1 {[%clk
0:00:36.2]} 117. Be6 {[%clk 0:00:14.5]} 117... Kf2 {[%clk 0:00:36.7]} 118. Bd7
{[%clk 0:00:14.9]} 118... Ke3 {[%clk 0:00:37.2]} 119. Be6 {[%clk 0:00:15.2]}
119... Kd4 {[%clk 0:00:37.5]} 120. Kg4 {[%clk 0:00:15.3]} 1/2-1/2

[Event "Early-Titled-Tuesday-Blitz-October-10-2023"]
[Site "Chess.com"]
[Date "2023.10.10"]
[Round "5"]
[White "Arash_Tahbaz"]
[Black "Iball95"]
[Result "1/2-1/2"]
[WhiteElo "2931"]
[BlackElo "2788"]
[TimeControl "180+1"]
[EndTime "8:57:13 PDT"]
[Termination "Game drawn - insufficient material"]

1. Nf3 {[%clk 0:03:00.9]} 1... c5 {[%clk 0:02:59.5]} 2. g3 {[%clk 0:02:56.2]}
2... d5 {[%clk 0:02:59.7]} 3. Bg2 {[%clk 0:02:56.7]} 3... Nf6 {[%clk 0:03:00.6]}
4. O-O {[%clk 0:02:56.5]} 4... Nc6 {[%clk 0:03:01.2]} 5. d4 {[%clk 0:02:56.9]}
5... e6 {[%clk 0:03:01.7]} 6. c4 {[%clk 0:02:56.6]} 6... Be7 {[%clk 0:03:02.3]}
7. cxd5 {[%clk 0:02:56.2]} 7... exd5 {[%clk 0:03:03.2]} 8. dxc5 {[%clk
0:02:56.4]} 8... Bxc5 {[%clk 0:03:04.1]} 9. a3 {[%clk 0:02:56.5]} 9... a5 {[%clk
0:03:04.6]} 10. Qa4 {[%clk 0:02:52.8]} 10... O-O {[%clk 0:03:04.5]} 11. b4
{[%clk 0:02:52.4]} 11... Bb6 {[%clk 0:02:43.7]} 12. b5 {[%clk 0:02:42.3]} 12...
Nb8 {[%clk 0:02:37.8]} 13. Bb2 {[%clk 0:02:37.9]} 13... Be6 {[%clk 0:02:37.6]}
14. Nc3 {[%clk 0:02:19.3]} 14... Nbd7 {[%clk 0:02:37]} 15. Rad1 {[%clk
0:02:19.7]} 15... Rc8 {[%clk 0:02:30.6]} 16. Nd4 {[%clk 0:01:51]} 16... Rc4
{[%clk 0:02:14.3]} 17. Nxe6 {[%clk 0:01:50.1]} 17... fxe6 {[%clk 0:02:15.2]} 18.
Qb3 {[%clk 0:01:50.5]} 18... Nc5 {[%clk 0:01:29.2]} 19. Qxc4 {[%clk 0:01:50.1]}
19... dxc4 {[%clk 0:01:27.3]} 20. Rxd8 {[%clk 0:01:51]} 20... Rxd8 {[%clk
0:01:28.2]} 21. Rd1 {[%clk 0:01:49.8]} 21... Rxd1+ {[%clk 0:01:25.1]} 22. Nxd1
{[%clk 0:01:50.7]} 22... Nd5 {[%clk 0:01:18.3]} 23. Nc3 {[%clk 0:01:23.8]} 23...
Nxc3 {[%clk 0:01:11.9]} 24. Bxc3 {[%clk 0:01:24.7]} 24... Na4 {[%clk 0:01:10.8]}
25. Be5 {[%clk 0:01:16.9]} 25... Bc5 {[%clk 0:01:11.6]} 26. Bxb7 {[%clk
0:01:14.8]} 26... Bxa3 {[%clk 0:01:08.4]} 27. Be4 {[%clk 0:01:10.7]} 27... Kf7
{[%clk 0:01:05]} 28. Bc2 {[%clk 0:01:08.8]} 28... Nb6 {[%clk 0:00:53.9]} 29. Bd4
{[%clk 0:01:08.8]} 29... Nd7 {[%clk 0:00:52.5]} 30. Kf1 {[%clk 0:00:13]} 30...
Bc5 {[%clk 0:00:50.5]} 31. Ba1 {[%clk 0:00:11.5]} 31... g6 {[%clk 0:00:47.4]}
32. f4 {[%clk 0:00:11.3]} 32... Ke7 {[%clk 0:00:47.2]} 33. e4 {[%clk 0:00:11.3]}
33... Kd6 {[%clk 0:00:47.5]} 34. h4 {[%clk 0:00:11.1]} 34... Kc7 {[%clk
0:00:26.9]} 35. f5 {[%clk 0:00:11.4]} 35... exf5 {[%clk 0:00:27.8]} 36. exf5
{[%clk 0:00:12.3]} 36... gxf5 {[%clk 0:00:28.7]} 37. Bxf5 {[%clk 0:00:13]} 37...
Nf8 {[%clk 0:00:28.1]} 38. g4 {[%clk 0:00:07]} 38... Kb6 {[%clk 0:00:28.7]} 39.
g5 {[%clk 0:00:07.5]} 39... Kxb5 {[%clk 0:00:29.1]} 40. Ke2 {[%clk 0:00:04.9]}
40... a4 {[%clk 0:00:29.5]} 41. h5 {[%clk 0:00:04.9]} 41... a3 {[%clk
0:00:27.9]} 42. Kd1 {[%clk 0:00:04.2]} 42... Bb4 {[%clk 0:00:22.4]} 43. Kc2
{[%clk 0:00:03.6]} 43... Kc5 {[%clk 0:00:21.1]} 44. Bg7 {[%clk 0:00:03.6]} 44...
Kd5 {[%clk 0:00:20.9]} 45. g6 {[%clk 0:00:02.8]} 45... hxg6 {[%clk 0:00:17.5]}
46. hxg6 {[%clk 0:00:03.7]} 46... Be7 {[%clk 0:00:14.3]} 47. Bc3 {[%clk
0:00:03.8]} 47... Nxg6 {[%clk 0:00:14.3]} 48. Bxg6 {[%clk 0:00:04.7]} 48... Bc5
{[%clk 0:00:14.9]} 49. Bf7+ {[%clk 0:00:04.4]} 49... Kc6 {[%clk 0:00:14.9]} 50.
Bxc4 {[%clk 0:00:05.3]} 50... Bd6 {[%clk 0:00:15.4]} 51. Bd3 {[%clk 0:00:05.9]}
51... Kd7 {[%clk 0:00:14.5]} 52. Kb3 {[%clk 0:00:06.4]} 52... Ke7 {[%clk
0:00:15.4]} 53. Bc4 {[%clk 0:00:06.6]} 53... Kd7 {[%clk 0:00:15]} 54. Kc2 {[%clk
0:00:07.2]} 54... Kc6 {[%clk 0:00:15.6]} 55. Bd4 {[%clk 0:00:07.7]} 55... Bc5
{[%clk 0:00:15.2]} 56. Ba1 {[%clk 0:00:08.3]} 56... Bd6 {[%clk 0:00:14.4]} 57.
Kd3 {[%clk 0:00:08.9]} 57... Bc5 {[%clk 0:00:14.6]} 58. Ke4 {[%clk 0:00:08.9]}
58... Bd6 {[%clk 0:00:14.6]} 59. Bf6 {[%clk 0:00:07.7]} 59... Bc5 {[%clk
0:00:13.7]} 60. Bd5+ {[%clk 0:00:08.1]} 60... Kd6 {[%clk 0:00:13.8]} 61. Be5+
{[%clk 0:00:08.6]} 61... Kd7 {[%clk 0:00:13.8]} 62. Bb3 {[%clk 0:00:07.1]} 62...
Bd6 {[%clk 0:00:14.5]} 63. Bd4 {[%clk 0:00:07]} 63... Kc6 {[%clk 0:00:15.2]} 64.
Ba4+ {[%clk 0:00:07.4]} 64... Kc7 {[%clk 0:00:15.2]} 65. Kd5 {[%clk 0:00:08]}
65... Bg3 {[%clk 0:00:13.7]} 66. Bc5 {[%clk 0:00:06.7]} 66... a2 {[%clk
0:00:14.1]} 67. Bd4 {[%clk 0:00:07.1]} 67... Bf2 {[%clk 0:00:12.9]} 68. Be5+
{[%clk 0:00:07.7]} 68... Kb6 {[%clk 0:00:13.4]} 69. Bb3 {[%clk 0:00:08.3]} 69...
a1=Q {[%clk 0:00:13.4]} 70. Bxa1 {[%clk 0:00:08]} 70... Bg1 {[%clk 0:00:14]} 71.
Bc4 {[%clk 0:00:08.2]} 71... Bf2 {[%clk 0:00:14.6]} 72. Bf6 {[%clk 0:00:08]}
72... Ka5 {[%clk 0:00:13.9]} 73. Be7 {[%clk 0:00:06.1]} 73... Be3 {[%clk
0:00:14]} 74. Bd3 {[%clk 0:00:06.2]} 74... Bf2 {[%clk 0:00:14.6]} 75. Kc4 {[%clk
0:00:06.3]} 75... Kb6 {[%clk 0:00:15.2]} 76. Be4 {[%clk 0:00:03.9]} 76... Bg1
{[%clk 0:00:15.6]} 77. Bd8+ {[%clk 0:00:04.3]} 77... Ka6 {[%clk 0:00:14.2]} 78.
Bf5 {[%clk 0:00:03.4]} 78... Bb6 {[%clk 0:00:14.9]} 79. Bc8+ {[%clk 0:00:03.2]}
79... Ka7 {[%clk 0:00:15.2]} 80. Be7 {[%clk 0:00:03.2]} 80... Kb8 {[%clk
0:00:16]} 81. Ba6 {[%clk 0:00:03]} 81... Kc7 {[%clk 0:00:16.4]} 82. Kd5 {[%clk
0:00:03.6]} 82... Bg1 {[%clk 0:00:16.8]} 83. Be2 {[%clk 0:00:03.7]} 83... Bf2
{[%clk 0:00:16.7]} 84. Bd6+ {[%clk 0:00:02.1]} 84... Kb6 {[%clk 0:00:17.3]} 85.
Bc4 {[%clk 0:00:02.8]} 85... Be3 {[%clk 0:00:17]} 86. Be7 {[%clk 0:00:02.8]}
86... Kc7 {[%clk 0:00:15.3]} 87. Bf6 {[%clk 0:00:03]} 87... Bf4 {[%clk
0:00:15.2]} 88. Bc3 {[%clk 0:00:03.3]} 88... Be3 {[%clk 0:00:15.4]} 89. Be5+
{[%clk 0:00:03.5]} 89... Kb6 {[%clk 0:00:15.9]} 90. Bg3 {[%clk 0:00:03.5]} 90...
Bg1 {[%clk 0:00:16.1]} 91. Be2 {[%clk 0:00:03.7]} 91... Be3 {[%clk 0:00:16.3]}
92. Bf3 {[%clk 0:00:03.1]} 92... Bg1 {[%clk 0:00:15.9]} 93. Bh4 {[%clk
0:00:03.7]} 93... Kc7 {[%clk 0:00:16]} 94. Be7 {[%clk 0:00:04]} 94... Bf2 {[%clk
0:00:15.3]} 95. Bd6+ {[%clk 0:00:04]} 95... Kb6 {[%clk 0:00:16.1]} 96. Bf4
{[%clk 0:00:02.3]} 96... Bg1 {[%clk 0:00:16.2]} 97. Ke6 {[%clk 0:00:02.7]} 97...
Bf2 {[%clk 0:00:16.3]} 98. Kd7 {[%clk 0:00:03]} 98... Kb5 {[%clk 0:00:15.8]} 99.
Be3 {[%clk 0:00:02]} 99... Bxe3 {[%clk 0:00:15.9]} 1/2-1/2

[Event "Early-Titled-Tuesday-Blitz-October-10-2023"]
[Site "Chess.com"]
[Date "2023.10.10"]
[Round "6"]
[White "MikeSailer"]
[Black "DvaHrasta"]
[Result "1/2-1/2"]
[WhiteElo "2146"]
[BlackElo "2440"]
[TimeControl "180+1"]
[EndTime "8:59:13 PDT"]
[Termination "Game drawn by repetition"]

1. d4 {[%clk 0:03:00]} 1... Nf6 {[%clk 0:02:59.5]} 2. Bg5 {[%clk 0:02:59.5]}
2... c5 {[%clk 0:02:58.9]} 3. Bxf6 {[%clk 0:02:53.3]} 3... gxf6 {[%clk
0:02:58.5]} 4. Nc3 {[%clk 0:02:29.2]} 4... Qb6 {[%clk 0:02:54.7]} 5. e3 {[%clk
0:02:24.3]} 5... Qxb2 {[%clk 0:02:49.2]} 6. Nb5 {[%clk 0:02:23.5]} 6... Na6
{[%clk 0:02:48.8]} 7. Rb1 {[%clk 0:02:20.8]} 7... Qxa2 {[%clk 0:02:45.2]} 8. Ra1
{[%clk 0:02:21.5]} 8... Qb2 {[%clk 0:02:42.5]} 9. Rb1 {[%clk 0:02:16.2]} 9...
Qa2 {[%clk 0:02:35.3]} 10. Ra1 {[%clk 0:02:16.9]} 10... Qb2 {[%clk 0:02:35.4]}
11. Rb1 {[%clk 0:02:17.3]} 11... Qa2 {[%clk 0:02:33.7]} 1/2-1/2

[Event "Early-Titled-Tuesday-Blitz-October-10-2023"]
[Site "Chess.com"]
[Date "2023.10.10"]
[Round "6"]
[White "c63_amg"]
[Black "Aswathchess"]
[Result "1-0"]
[WhiteElo "2809"]
[BlackElo "2624"]
[TimeControl "180+1"]
[EndTime "8:59:48 PDT"]
[Termination "c63_amg won by checkmate"]

1. e4 {[%clk 0:03:00.9]} 1... g6 {[%clk 0:02:59.4]} 2. d4 {[%clk 0:02:59.3]}
2... Bg7 {[%clk 0:02:59.8]} 3. Nc3 {[%clk 0:02:59.3]} 3... d6 {[%clk 0:02:59.9]}
4. f4 {[%clk 0:02:59.4]} 4... a6 {[%clk 0:02:59.5]} 5. Nf3 {[%clk 0:02:59.6]}
5... b5 {[%clk 0:02:58.1]} 6. Bd3 {[%clk 0:02:57]} 6... Nd7 {[%clk 0:02:58.3]}
7. a4 {[%clk 0:02:56.6]} 7... b4 {[%clk 0:02:58.1]} 8. Nd5 {[%clk 0:02:55.2]}
8... a5 {[%clk 0:02:56.8]} 9. c3 {[%clk 0:02:55.4]} 9... Bb7 {[%clk 0:02:56.4]}
10. Ne3 {[%clk 0:02:47.6]} 10... c5 {[%clk 0:02:54.6]} 11. O-O {[%clk
0:02:45.8]} 11... cxd4 {[%clk 0:02:50.2]} 12. cxd4 {[%clk 0:02:45.8]} 12... Ngf6
{[%clk 0:02:49.5]} 13. e5 {[%clk 0:02:44.5]} 13... Nd5 {[%clk 0:02:49.3]} 14. e6
{[%clk 0:02:30.3]} 14... fxe6 {[%clk 0:02:47.3]} 15. Ng5 {[%clk 0:02:30.8]}
15... Bxd4 {[%clk 0:02:33.6]} 16. Nxe6 {[%clk 0:02:15.7]} 16... Nxe3 {[%clk
0:02:33.6]} 17. Bxg6+ {[%clk 0:02:15.5]} 17... hxg6 {[%clk 0:02:29.2]} 18. Qxd4
{[%clk 0:02:16.4]} 18... Qb6 {[%clk 0:02:23.9]} 19. Qxh8+ {[%clk 0:02:08.8]}
19... Kf7 {[%clk 0:02:24.2]} 20. Ng5# {[%clk 0:02:09.5]} 1-0

[Event "Early-Titled-Tuesday-Blitz-October-10-2023"]
[Site "Chess.com"]
[Date "2023.10.10"]
[Round "6"]
[White "Shiirav"]
[Black "Battever"]
[Result "1-0"]
[WhiteElo "2666"]
[BlackElo "2515"]
[TimeControl "180+1"]
[EndTime "9:00:12 PDT"]
[Termination "Shiirav won by resignation"]

1. d4 {[%clk 0:02:58.5]} 1... Nf6 {[%clk 0:02:59]} 2. c4 {[%clk 0:02:58.2]} 2...
e6 {[%clk 0:02:58.8]} 3. Nf3 {[%clk 0:02:58.4]} 3... Bb4+ {[%clk 0:02:58.3]} 4.
Nbd2 {[%clk 0:02:57.7]} 4... b6 {[%clk 0:02:49]} 5. a3 {[%clk 0:02:57.4]} 5...
Bxd2+ {[%clk 0:02:48.4]} 6. Qxd2 {[%clk 0:02:57.4]} 6... Bb7 {[%clk 0:02:47.4]}
7. e3 {[%clk 0:02:57.4]} 7... O-O {[%clk 0:02:47.4]} 8. Be2 {[%clk 0:02:57.1]}
8... d6 {[%clk 0:02:38.6]} 9. O-O {[%clk 0:02:56.8]} 9... Nbd7 {[%clk
0:02:38.6]} 10. b4 {[%clk 0:02:56.1]} 10... e5 {[%clk 0:02:39]} 11. Bb2 {[%clk
0:02:53.5]} 11... Re8 {[%clk 0:02:34.7]} 12. d5 {[%clk 0:02:52.4]} 12... b5
{[%clk 0:02:29.2]} 13. Qc2 {[%clk 0:02:48.7]} 13... bxc4 {[%clk 0:02:27.6]} 14.
e4 {[%clk 0:02:48.9]} 14... c6 {[%clk 0:02:21.1]} 15. dxc6 {[%clk 0:02:46.2]}
15... Bxc6 {[%clk 0:02:20.8]} 16. Bxc4 {[%clk 0:02:46]} 16... Rf8 {[%clk
0:01:40]} 17. Bxf7+ {[%clk 0:02:43.6]} 17... Rxf7 {[%clk 0:01:36.2]} 18. Qxc6
{[%clk 0:02:43.1]} 18... Qb6 {[%clk 0:01:34.4]} 19. Qxa8+ {[%clk 0:02:42.1]} 1-0

[Event "Early-Titled-Tuesday-Blitz-October-10-2023"]
[Site "Chess.com"]
[Date "2023.10.10"]
[Round "6"]
[White "Lion-Al-Messi"]
[Black "Daniel_Salinas"]
[Result "1-0"]
[WhiteElo "2625"]
[BlackElo "2442"]
[TimeControl "180+1"]
[EndTime "9:00:16 PDT"]
[Termination "Lion-Al-Messi won by resignation"]

1. e4 {[%clk 0:03:00.9]} 1... d6 {[%clk 0:02:54.7]} 2. d4 {[%clk 0:03:00.6]}
2... Nf6 {[%clk 0:02:52.7]} 3. Nc3 {[%clk 0:03:00.4]} 3... e5 {[%clk 0:02:52.8]}
4. Nf3 {[%clk 0:02:59.9]} 4... Nbd7 {[%clk 0:02:50.1]} 5. Be2 {[%clk 0:02:58.3]}
5... Be7 {[%clk 0:02:49.3]} 6. O-O {[%clk 0:02:58]} 6... O-O {[%clk 0:02:49.8]}
7. Re1 {[%clk 0:02:55.2]} 7... c6 {[%clk 0:02:49.9]} 8. a4 {[%clk 0:02:53.3]}
8... Qc7 {[%clk 0:02:49.9]} 9. b3 {[%clk 0:02:52.9]} 9... b6 {[%clk 0:02:49.1]}
10. Ba3 {[%clk 0:02:52.8]} 10... a6 {[%clk 0:02:43]} 11. Qd2 {[%clk 0:02:50]}
11... Bb7 {[%clk 0:02:37.5]} 12. Rad1 {[%clk 0:02:49.7]} 12... b5 {[%clk
0:02:37.6]} 13. dxe5 {[%clk 0:02:48.7]} 13... Nxe5 {[%clk 0:02:29.8]} 14. Bxd6
{[%clk 0:02:48.5]} 14... Bxd6 {[%clk 0:02:29.1]} 15. Qxd6 {[%clk 0:02:49.4]}
15... Nxf3+ {[%clk 0:02:25.7]} 16. Bxf3 {[%clk 0:02:46.7]} 16... Qa5 {[%clk
0:02:26]} 17. b4 {[%clk 0:02:35.7]} 17... Qb6 {[%clk 0:02:22.8]} 18. a5 {[%clk
0:02:34.7]} 18... Qa7 {[%clk 0:02:23.1]} 19. e5 {[%clk 0:02:33]} 19... Ne8
{[%clk 0:02:21.8]} 20. Qe7 {[%clk 0:02:29.5]} 20... Qb8 {[%clk 0:02:07.2]} 21.
Rd7 {[%clk 0:02:24.1]} 21... Bc8 {[%clk 0:02:06.1]} 22. Rd8 {[%clk 0:02:22.2]}
22... Qc7 {[%clk 0:01:50.6]} 23. Rxe8 {[%clk 0:02:19.8]} 1-0

[Event "Early-Titled-Tuesday-Blitz-October-10-2023"]
[Site "Chess.com"]
[Date "2023.10.10"]
[Round "6"]
[White "amanmuhammethommadov"]
[Black "MikaelyanArman"]
[Result "0-1"]
[WhiteElo "2602"]
[BlackElo "2831"]
[TimeControl "180+1"]
[EndTime "9:01:04 PDT"]
[Termination "MikaelyanArman won by resignation"]

1. e4 {[%clk 0:02:59.5]} 1... e5 {[%clk 0:02:58.9]} 2. Nf3 {[%clk 0:02:59.7]}
2... Nc6 {[%clk 0:02:58.9]} 3. Bb5 {[%clk 0:02:59.9]} 3... a6 {[%clk 0:02:58.4]}
4. Ba4 {[%clk 0:03:00.4]} 4... Nf6 {[%clk 0:02:58.8]} 5. O-O {[%clk 0:03:00.7]}
5... Be7 {[%clk 0:02:57]} 6. Re1 {[%clk 0:03:01]} 6... b5 {[%clk 0:02:56.2]} 7.
Bb3 {[%clk 0:03:01.4]} 7... O-O {[%clk 0:02:56.3]} 8. c3 {[%clk 0:03:01.6]} 8...
d5 {[%clk 0:02:55.5]} 9. exd5 {[%clk 0:03:02.5]} 9... Nxd5 {[%clk 0:02:56.4]}
10. Nxe5 {[%clk 0:03:02.8]} 10... Nxe5 {[%clk 0:02:57.1]} 11. Rxe5 {[%clk
0:03:03.7]} 11... c6 {[%clk 0:02:57.8]} 12. d3 {[%clk 0:03:04]} 12... Bd6 {[%clk
0:02:58]} 13. Re1 {[%clk 0:03:04.2]} 13... Bf5 {[%clk 0:02:56.7]} 14. Qf3 {[%clk
0:03:04.2]} 14... Bg6 {[%clk 0:02:56.3]} 15. g3 {[%clk 0:02:55.3]} 15... Re8
{[%clk 0:02:49.6]} 16. Rxe8+ {[%clk 0:02:52]} 16... Qxe8 {[%clk 0:02:50.5]} 17.
Be3 {[%clk 0:02:51.8]} 17... Nxe3 {[%clk 0:02:43.7]} 18. fxe3 {[%clk 0:02:51.8]}
18... Bxd3 {[%clk 0:02:42.1]} 19. Nd2 {[%clk 0:02:51.9]} 19... Bc5 {[%clk
0:02:33.7]} 20. Re1 {[%clk 0:02:51.6]} 20... Rd8 {[%clk 0:02:31.4]} 21. Nf1
{[%clk 0:02:46]} 21... Bg6 {[%clk 0:02:14.7]} 22. Rd1 {[%clk 0:02:42.3]} 22...
Rxd1 {[%clk 0:02:11.2]} 23. Qxd1 {[%clk 0:02:38.6]} 23... Bxe3+ {[%clk
0:02:09.1]} 24. Nxe3 {[%clk 0:02:32.6]} 24... Qxe3+ {[%clk 0:02:10]} 25. Kg2
{[%clk 0:02:31]} 25... Be4+ {[%clk 0:02:01.1]} 26. Kf1 {[%clk 0:02:31]} 26...
Bd3+ {[%clk 0:01:58.2]} 27. Kg2 {[%clk 0:02:30.7]} 27... g6 {[%clk 0:01:35.4]}
28. Qg4 {[%clk 0:02:28.6]} 28... Qd2+ {[%clk 0:01:28.5]} 0-1